Workbook

Sheet Imapct Map
A1: Social Return on Investment - The Impact Map
A3: SROI Network | B3: Spreadsheet for developing SROI analysis. Only to by used as part of SROI Network training. The spreadsheet does not include any guidance
A5: Stage 1 | C5: Stage 2 | G5: Stage 3 | N5: Stage 4 | T5: Stage 5
A6: Stakeholders | B6: Intended/unintended changes | C6: Inputs | E6: Outputs | F6: The Outcomes (what changes) | N6: Deadweight % | O6: Displacement % | P6: Attribution % | Q6: Drop off % | R6: Impact | T6: Calculating Social Return
A7: Who will we have an effect on? Who will have an effect on us? | B7: What do we think will change for them? | C7: What will they invest? | D7: Value £ | E7: Summary of activity in numbers | F7: Description | G7: Indicator | H7: Source | I7: Quantity | J7: Duration | K7: Financial Proxy | L7: Value £ | M7: Source | N7: What would have happened without the activity? | O7: What activity would we displace? | P7: Who else would contribute to the change? | Q7: Will the outcome drop off in future years? | R7: Quantity times financial proxy, less deadweight, displacement and attribution | T7: Discount rate | V7: 0.035
F8: what changes? (based on how stakeholders would describe the change) | G8: How would we measure it? | H8: Where did we get the information from? | I8: How much change will there be? | J8: How long will it last? | K8: What proxy did we use to value the change? | L8: What is the value of the change? | M8: Where did we get the information from? | T8: Year 1 (after activity) | U8: Year 2 | V8: Year 3 | W8: Year 4 | X8: Year 5
A9: Young People | B9: Supported to make transitions into education, work or training | E9: 62 mentees seen over one year | F9: Young people are supported to progress to further education or training | G9: Number of YP progressing into FE | H9: Twenty Twenty database | I9: 11 | J9: 1 | K9: Average of wage difference with level 2 qual | L9: 1456 | M9: Department for Children, Schools and Families and estimate and Wage scare of being NEET http://www.wikivois.org/index.php?title=The_avoidance_of_a_wage_scar_in_later_life_because_a_young_person_is_employed_rather_than_NEET_aged_16-19 | N9: 0.1 | O9: 0 | P9: 0.71 | Q9: 0.1 | R9: =I9*L9*(1-N9)*(1-O9)*(1-P9) -> 4180.176 | T9: =IF(J9>=1,R9,0) -> 4180.176 | U9: =IF(J9>1,T9,0)*(1-Q9) -> 0 | V9: =IF(J9>2,U9,0)*(1-Q9) -> 0 | W9: =IF(J9>3,V9,0)*(1-Q9) -> 0 | X9: =IF(J9>4,W9,0)*(1-Q9) -> 0
B10: Supported to prevent or reduce ASB | E10: 48 mentors matched | F10: Young people are supported to gain employment | G10: Number of YP progressing into employment | H10: Twenty Twenty database | I10: 6 | J10: 1 | K10: The difference between the net increase of disposable income, including tax credit in employment compared to benefits based on working full time with an average salary of £15,921 and being on benefits £9040 | L10: 6881 | M10: Reducing dependency, increasing opportunity, options for the future of welfare to work by David Freud (DWP) and tax calculations from HM Revenue and Customs | N10: 0.1 | O10: 0.5 | P10: 0.71 | Q10: 0.1 | R10: =+I10*L10*(1-N10)*(1-O10)*(1-P10) -> 5387.823 | T10: 5387.823 | U10: 0 | V10: 0 | W10: 0 | X10: 0
F11: Young people at risk of ASB who are able to engage with a mentor, feel positive about themselves, increase aspirations and independently deal with difficult situations and stay strong | G11: 1 step progress (out of 4) | H11: Twenty Twenty database and manager and SOUL record | I11: 13 | J11: 5 | K11: As a proportion of making more responsible decisions/Less likelihood of contact with criminal justice system | L11: 1475.5 | M11: The economic and social return of action for children’s family intervention team/5+ project Caerphilly, 2009, nef | N11: 0.1 | O11: 0 | P11: 0.71 | Q11: 0.1 | R11: 5006.3715 | T11: 5006.3715 | U11: 4505.73435 | V11: 4055.160915 | W11: 3649.644824 | X11: 3284.680341
G12: 2 step progress (out of 4) | H12: Twenty Twenty database and manager and SOUL record | I12: 9 | J12: 5 | K12: As a proportion of making more responsible decisions/Less likelihood of contact with criminal justice system | L12: 2951 | M12: The economic and social return of action for children’s family intervention team/5+ project Caerphilly, 2009, nef | N12: 0.1 | O12: 0 | P12: 0.71 | Q12: 0.1 | R12: 6931.899 | T12: 6931.899 | U12: 6238.7091 | V12: 5614.83819 | W12: 5053.354371 | X12: 4548.018934
G13: 3 step progress (out of 4) | H13: Twenty Twenty database and manager and SOUL record | I13: 20 | J13: 5 | K13: As a proportion of making more responsible decisions/Less likelihood of contact with criminal justice system | L13: 4426.5 | M13: The economic and social return of action for children’s family intervention team/5+ project Caerphilly, 2009, nef | N13: 0.1 | O13: 0 | P13: 0.71 | Q13: 0.1 | R13: 23106.33 | T13: 23106.33 | U13: 20795.697 | V13: 18716.1273 | W13: 16844.51457 | X13: 15160.06311
G14: 4 step progress (out of 4) | H14: Twenty Twenty database and manager and SOUL record | I14: 1 | J14: 5 | K14: As a proportion of making more responsible decisions/Less likelihood of contact with criminal justice system | L14: 5902 | M14: The economic and social return of action for children’s family intervention team/5+ project Caerphilly, 2009, nef | N14: 0.1 | O14: 0 | P14: 0.71 | Q14: 0.1 | R14: 1540.422 | T14: 1540.422 | U14: 1386.3798 | V14: 1247.74182 | W14: 1122.967638 | X14: 1010.670874
F15: Relationships break down and Young people risk feeling let down | G15: 1 step backwards | H15: Twenty Twenty database and manager and SOUL record | I15: 2 | J15: 1 | K15: As a proportion of making more responsible decisions/Less likelihood of contact with criminal justice system | L15: -1475 | M15: The economic and social return of action for children’s family intervention team/5+ project Caerphilly, 2009, nef | N15: 0.1 | O15: 0 | P15: 0.71 | Q15: 0.1 | R15: =+I15*L15*(1-N15)*(1-O15)*(1-P15) -> -769.95 | T15: =IF(J15>=1,R15,0) -> -769.95 | U15: =IF(J15>1,T15,0)*(1-Q15) -> 0 | V15: =IF(J15>2,U15,0)*(1-Q15) -> 0 | W15: =IF(J15>3,V15,0)*(1-Q15) -> 0 | X15: =IF(J15>4,W15,0)*(1-Q15) -> 0
F16: Young people are able to improve their relationships with family and friends | G16: % of young people who improved relationships (friends or family) | H16: Interviews with Mentees | I16: 37 | J16: 5 | K16: value pf relationships = Annual household spending on recreation & culture | L16: 2985 | M16: The economic and social return of action for children’s family intervention team/5+ project Caerphilly, 2009, nef | N16: 0.1 | O16: 0 | P16: 0.71 | Q16: 0.1 | R16: =+I16*L16*(1-N16)*(1-O16)*(1-P16) -> 28826.145 | T16: =IF(J16>=1,R16,0) -> 28826.145 | U16: =IF(J16>1,T16,0)*(1-Q16) -> 25943.5305 | V16: =IF(J16>2,U16,0)*(1-Q16) -> 23349.17745 | W16: =IF(J16>3,V16,0)*(1-Q16) -> 21014.25971 | X16: =IF(J16>4,W16,0)*(1-Q16) -> 18912.83373 | Y16: =SUM(T9:X16) -> 276663.321 | Z16: 336028.1326 | AA16: =SUM(Y16)/Z16*100 -> 82.33338051
A17: Mentees | C17: 3640 hours times £6 an hour | D17: 21840 | F17: Mentees are able to gain training and experiences to improve their future job opportunities | G17: Approx % of mentees who were not retired | H17: Interviews and twenty twenty data on mentors | I17: 43 | J17: 1 | K17: The cost of an Employability course | L17: 400 | M17: TABS Training | N17: 0.1 | O17: 0 | P17: 0.71 | Q17: 0.1 | R17: 4489.2 | T17: =IF(J17>=1,R17,0) -> 4489.2 | U17: =IF(J17>1,T17,0)*(1-Q17) -> 0 | V17: =IF(J17>2,U17,0)*(1-Q17) -> 0 | W17: =IF(J17>3,V17,0)*(1-Q17) -> 0 | X17: =IF(J17>4,W17,0)*(1-Q17) -> 0 | Z17: 336029.1326 | AA17: =SUM(Y17)/Z17*100 -> 0
F18: Mentees feel an increased sense of purpose | G18: Total number of mentees | H18: Interviews and twenty twenty data on mentors | I18: 48 | J18: 1 | K18: Life coach (minimum for 10 weekly sessions) | L18: 500 | M18: Website search | N18: 0.1 | O18: 0 | P18: 0.71 | Q18: 0.1 | R18: 6264 | T18: 6264 | U18: 0 | V18: 0 | W18: 0 | X18: 0 | Y18: =SUM(T17:X18) -> 10753.2 | Z18: 336030.1326 | AA18: 3.20007016
A19: Connexions/DWP | F19: Reduced number of NEET young people | G19: Number of YP progressing into EET | H19: Twenty Twenty database | I19: 17 | J19: 1 | K19: Cost of supporting a young person who is NEET | L19: 5760 | M19: Audit Commission/York University (see report) | N19: 0.1 | O19: 0 | P19: 0.71 | Q19: 0.1 | R19: 25557.12 | T19: 25557.12 | U19: 0 | V19: 0 | W19: 0 | X19: 0 | Y19: =SUM(T19:X19) -> 25557.12 | Z19: 336031.1326 | AA19: 7.605581008
A20: Police | F20: Reduced cases of crime/ASB | G20: Number of young people offending less than expected | H20: Twenty Twenty database | I20: 42 | J20: 5 | K20: Average cost saving from reduced crime/ASB per person | L20: 968 | M20: The Economic and Social Costs of Anti-Social Behaviour: a review' (London School of Economics and Political Science, 2003), p.43 | N20: 0 | O20: 0 | P20: 0.71 | Q20: 0.1 | R20: 11790.24 | T20: =IF(J20>=1,R20,0) -> 11790.24 | U20: =IF(J20>1,T20,0)*(1-Q20) -> 10611.216 | V20: =IF(J20>2,U20,0)*(1-Q20) -> 9550.0944 | W20: =IF(J20>3,V20,0)*(1-Q20) -> 8595.08496 | X20: =IF(J20>4,W20,0)*(1-Q20) -> 7735.576464 | Y20: =SUM(T20:X20) -> 48282.21182 | Z20: 336032.1326 | AA20: 14.36833182
A21: Family members/parents | F21: Improved relationships | G21: % of young people who improved relationships with parents | H21: Interviews with mentees | I21: 12 | J21: 5 | K21: Family mediation couselling (£35 an hour over 12 weeks) | L21: 420 | M21: Scotia direct from Relationship Scotlandhttp://www.employabilityinscotland.com/sites/default/files/articles/5677/Scotia%2520Clubhouse%2520SROI%2520Report%2520-%2520February%25202011_2106_2979.pdf | N21: 0.1 | O21: 0 | P21: 0.71 | Q21: 0.1 | R21: =+I21*L21*(1-N21)*(1-O21)*(1-P21) -> 1315.44 | T21: =IF(J21>=1,R21,0) -> 1315.44 | U21: =IF(J21>1,T21,0)*(1-Q21) -> 1183.896 | V21: =IF(J21>2,U21,0)*(1-Q21) -> 1065.5064 | W21: =IF(J21>3,V21,0)*(1-Q21) -> 958.95576 | X21: =IF(J21>4,W21,0)*(1-Q21) -> 863.060184 | Y21: =SUM(T21:X21) -> 5386.858344 | Z21: 336033.1326 | AA21: 1.603073573
A22: Community Safety Funding | C22: Funding | D22: 25282
A23: Other Funding | D23: 20000
A24: Total | D24: =SUM(D17:D23) -> 67122 | R24: =SUM(R9:R19) -> 110519.5365 | T24: =SUM(T9:T22) -> 123625.2165 | U24: =SUM(U9:U22) -> 70665.16275 | V24: =SUM(V9:V22) -> 63598.64648 | W24: =SUM(W9:W22) -> 57238.78183 | X24: =SUM(X9:X22) -> 51514.90364
O26: Present value of each year (after discounting) | T26: =+T24/(1+V7) -> 119444.6536 | U26: =+U24/((1+V7)*(1+V7)) -> 65966.68557 | V26: =+V24/((1+V7)*(1+V7)*(1+V7)) -> 57362.33528 | W26: =+W24/((1+V7)*(1+V7)*(1+V7)*(1+V7)) -> 49880.29155 | X26: =+X24/((1+V7)*(1+V7)*(1+V7)*(1+V7)*(1+V7)) -> 43374.16656
O27: Total Present Value (PV) | X27: =NPV(V7,T24:X24) -> 336028.1326
O28: Net Present Value (PV minus the investment) | X28: =+X27-D24 -> 268906.1326
O29: Social Return £ per £ | X29: =+X27/D24 -> 5.006229442

Sheet ASBCrime calculations
B1: 1. Previous Crime/ASB costs
D2: Single ASB warning | E2: Multiple ASB warnings | F2: Robbery/burglary/theft/shopt lifting | G2: Drug offenses | H2: Arson | I2: Known to JAG | J2: Assault | K2: ASB convictions
C3: No of YP | D3: 2 | E3: 15 | F3: 6 | G3: 2 | H3: 1 | I3: 2 | J3: 1 | K3: 1
C4: Number of incidents per person | D4: 1 | E4: 3 | F4: 1 | G4: 1 | H4: 1 | I4: 1 | J4: 1 | K4: 1
C5: Total number of incidents | D5: =SUM(D3)*D4 -> 2 | E5: =SUM(E3)*E4 -> 45 | F5: 6 | G5: 2 | H5: 1 | I5: 2 | J5: 1 | K5: 1
B6: Assumption: Multiple ASB warnings = 3 warnings
C8: Crime/ASB type | D8: Number of incidents | E8: Crime/ASB type in cost database | F8: Unit | G8: Cost | H8: Total cost
C9: ASB no further action | D9: 47 | E9: Anti-social behaviour - no further action taken (cost of dealing with incident, simple reporting only) | F9: Per incident | G9: 44.06165094 | H9: =SUM(D9)*G9 -> 2070.897594
C10: ASB and further action | D10: 1 | E10: Anti-social behaviour - further action necessary (cost of dealing with incident) | F10: Per incident | G10: 629.4521563 | H10: =SUM(D10)*G10 -> 629.4521563
C11: Arrests | D11: 9 | E11: Arrest | F11: Per event | G11: 2240.518215 | H11: 20164.66394
C12: Arson | D12: 1 | E12: Domestic fires | F12: Per incident | G12: 3733.758198 | H12: 3733.758198
H13: =SUM(H9:H12) -> 26598.77188
C15: Total cost of Crime/ASB | D15: 26598.77188
C16: Number of YP involved in crime/ASB | D16: 27
C17: Cost per YP | D17: =SUM(D15)/D16 -> 985.1396994
B18: Assumption: ASB warning = cost of ASB no further action
B20: 2. Predicted Future Crime/ASB costs
C21: Risk type | D21: Number of YP | E21: Chance of offending | F21: Evidence | G21: Expected number | H21: Cost per person | I21: Total expected costs
C22: YP with past offenses | D22: 27 | E22: 1 | F22: n/a | G22: =SUM(D22)*E22 -> 27 | H22: 985.1396994 | I22: =SUM(G22)*H22 -> 26598.77188
C23: Additional YP with family offenders (in prison or convcited) | D23: 16 | E23: 0.6 | F23: Over 60% of boys whose fathers had been convicted were eventually convicted themselves (Farrington et al, 1996). | G23: =SUM(D23)*E23 -> 9.6 | H23: 985.1396994 | I23: =SUM(G23)*H23 -> 9457.341114
C24: Additional YP disengaged from eduction | D24: 11 | E24: 0.45 | F24: In the Cambridge study, between 44% and 48% of secondary school truants were offenders (West, 1982)., | G24: 4.95 | H24: 985.1396994 | I24: 4876.441512
G25: 42 | H25: 985.1396994 | I25: =SUM(G25)*H25 -> 41375.86738
B26: Assumption: YP with past ASB/crime will continue same level of ASB/crime
B28: 3. Actual cost of crime/ASB during Twenty Twenty
F29: No of incidents | G29: Total costs
C30: Anti-social behaviour - further action necessary (cost of dealing with incident) | D30: Per incident | E30: 629.4521563 | F30: 1 | G30: =SUM(E30)*F30 -> 629.4521563
C31: Anti-social behaviour - no further action taken (cost of dealing with incident, simple reporting only) | D31: Per incident | E31: 44.06165094 | F31: 2 | G31: =SUM(E31)*F31 -> 88.12330189
G32: =SUM(G29:G31) -> 717.5754582
B34: 4. Cost saving in Year 1
C36: Total expected costs | D36: 41375.86738
C37: Actual costs | D37: 717.5754582
C38: Total Cost saving * | D38: =SUM(D36)-D37 -> 40658.29192
C39: Number of YP expected to be involved in crime/ASB | D39: 42
C40: Cost saving per person | D40: =SUM(D38)/D39 -> 968.0545695
C42: * before discounting for attribution

Sheet Sheet3
